[Event "*** Titled Tuesday Blitz"]
[Site "Chess.com"]
[Date "2018.07.03"]
[Round "8"]
[White "jacky72"]
[Black "pulvettd"]
[Result "1-0"]
[WhiteElo "2613"]
[BlackElo "2459"]
[TimeControl "180+2"]
[EndTime "14:43:45 PDT"]
[Termination "jacky72 won on time"]

1. d4 {[%clk 0:02:15.5]} 1... Nf6 {[%clk 0:02:55.6]} 2. c4 {[%clk 0:02:14.6]}
2... g6 {[%clk 0:02:56]} 3. Nc3 {[%clk 0:02:14.7]} 3... Bg7 {[%clk 0:02:57.9]}
4. e4 {[%clk 0:02:16.1]} 4... d6 {[%clk 0:02:59.8]} 5. Be2 {[%clk 0:02:17.5]}
5... O-O {[%clk 0:03:01.5]} 6. Bg5 {[%clk 0:02:19.1]} 6... Nbd7 {[%clk
0:02:58.7]} 7. Qd2 {[%clk 0:02:20]} 7... e5 {[%clk 0:02:58.4]} 8. d5 {[%clk
0:02:19.7]} 8... a5 {[%clk 0:02:56.5]} 9. f3 {[%clk 0:02:20.5]} 9... h6 {[%clk
0:02:54.4]} 10. Be3 {[%clk 0:02:15.2]} 10... Nc5 {[%clk 0:02:54.3]} 11. g4
{[%clk 0:02:16.5]} 11... h5 {[%clk 0:02:52.9]} 12. h3 {[%clk 0:02:16.1]} 12...
Kh8 {[%clk 0:02:50.3]} 13. O-O-O {[%clk 0:02:17.3]} 13... Nh7 {[%clk 0:02:49.2]}
14. gxh5 {[%clk 0:02:17.7]} 14... gxh5 {[%clk 0:02:49]} 15. h4 {[%clk
0:02:15.8]} 15... f5 {[%clk 0:02:35.8]} 16. Nh3 {[%clk 0:02:17]} 16... fxe4
{[%clk 0:02:33.9]} 17. fxe4 {[%clk 0:02:16.3]} 17... Bxh3 {[%clk 0:02:27.2]} 18.
Rxh3 {[%clk 0:02:16.9]} 18... Nf6 {[%clk 0:02:13.8]} 19. Bxc5 {[%clk 0:02:17.2]}
19... dxc5 {[%clk 0:02:13.4]} 20. Rg3 {[%clk 0:02:19.1]} 20... Rf7 {[%clk
0:01:58.2]} 21. Rdg1 {[%clk 0:02:19.4]} 21... Qf8 {[%clk 0:01:56.9]} 22. Kb1
{[%clk 0:02:18.6]} 22... Bh6 {[%clk 0:01:53.1]} 23. Qd1 {[%clk 0:02:19.9]} 23...
Bf4 {[%clk 0:01:47.2]} 24. Rg6 {[%clk 0:02:20.4]} 24... Rh7 {[%clk 0:01:36.6]}
25. Nb5 {[%clk 0:02:16.2]} 25... Nxe4 {[%clk 0:01:25.5]} 26. Qd3 {[%clk
0:02:10.2]} 26... Nd2+ {[%clk 0:01:23.5]} 27. Ka1 {[%clk 0:02:09.8]} 27... a4
{[%clk 0:01:19.4]} 28. d6 {[%clk 0:02:08.6]} 28... cxd6 {[%clk 0:01:15]} 29.
Nxd6 {[%clk 0:02:03.5]} 29... Nb3+ {[%clk 0:01:09.5]} 30. Kb1 {[%clk 0:01:56.6]}
30... Nd2+ {[%clk 0:01:09.8]} 31. Kc2 {[%clk 0:01:54.3]} 31... a3 {[%clk
0:00:41.4]} 32. b3 {[%clk 0:01:51.7]} 32... Rd8 {[%clk 0:00:29.6]} 33. Qd5
{[%clk 0:01:45.9]} 33... e4 {[%clk 0:00:30]} 34. Rg8+ {[%clk 0:01:36.4]} 34...
Qxg8 {[%clk 0:00:31.3]} 35. Rxg8+ {[%clk 0:01:38.3]} 35... Rxg8 {[%clk
0:00:30.5]} 36. Nf7+ {[%clk 0:01:40.2]} 36... Rxf7 {[%clk 0:00:21.3]} 37. Qxf7
{[%clk 0:01:39.7]} 37... Rg2 {[%clk 0:00:23.2]} 38. Qxf4 {[%clk 0:01:28.6]}
38... Rxe2 {[%clk 0:00:18.9]} 39. Kd1 {[%clk 0:01:30]} 39... Rg2 {[%clk
0:00:14.4]} 40. Qf8+ {[%clk 0:01:28.5]} 40... Kh7 {[%clk 0:00:15.4]} 41. Qxc5
{[%clk 0:01:28.9]} 41... Nf3 {[%clk 0:00:11.7]} 42. Qxh5+ {[%clk 0:01:29.2]}
42... Kg7 {[%clk 0:00:10.5]} 43. Qc5 {[%clk 0:01:28.5]} 43... Rd2+ {[%clk
0:00:07.7]} 44. Kc1 {[%clk 0:01:29.4]} 44... Rd4 {[%clk 0:00:09.2]} 45. Qxa3
{[%clk 0:01:27.6]} 45... Kf6 {[%clk 0:00:04.1]} 46. Qf8+ {[%clk 0:01:28.3]}
46... Ke5 {[%clk 0:00:05.2]} 47. h5 {[%clk 0:01:27.9]} 47... Rd3 {[%clk
0:00:04.3]} 48. h6 {[%clk 0:01:28]} 1-0

[Event "*** Titled Tuesday Blitz"]
[Site "Chess.com"]
[Date "2018.07.03"]
[Round "8"]
[White "NemtsevIgor"]
[Black "PaulfromSPb"]
[Result "0-1"]
[WhiteElo "2396"]
[BlackElo "2530"]
[TimeControl "180+2"]
[EndTime "14:44:05 PDT"]
[Termination "PaulfromSPb won by resignation"]

1. d4 {[%clk 0:03:01.9]} 1... Nf6 {[%clk 0:03:00.3]} 2. Bf4 {[%clk 0:03:01.6]}
2... d6 {[%clk 0:03:00.9]} 3. Nf3 {[%clk 0:03:02.2]} 3... g6 {[%clk 0:02:59.7]}
4. e3 {[%clk 0:03:02.1]} 4... Bg7 {[%clk 0:03:00.6]} 5. h3 {[%clk 0:03:00.8]}
5... a6 {[%clk 0:02:56]} 6. Be2 {[%clk 0:03:01.6]} 6... b5 {[%clk 0:02:56.7]} 7.
O-O {[%clk 0:03:02.5]} 7... Bb7 {[%clk 0:02:57.8]} 8. a4 {[%clk 0:03:03.6]} 8...
b4 {[%clk 0:02:58.7]} 9. c4 {[%clk 0:03:03.5]} 9... O-O {[%clk 0:02:48.9]} 10.
Nbd2 {[%clk 0:03:00.2]} 10... a5 {[%clk 0:02:49.6]} 11. Bh2 {[%clk 0:02:55.2]}
11... Nbd7 {[%clk 0:02:50.3]} 12. Qc2 {[%clk 0:02:54]} 12... Re8 {[%clk
0:02:42.9]} 13. c5 {[%clk 0:02:52]} 13... Ba6 {[%clk 0:02:20.7]} 14. Bb5 {[%clk
0:02:36.9]} 14... Qb8 {[%clk 0:02:13.2]} 15. Bxa6 {[%clk 0:02:17.8]} 15... Rxa6
{[%clk 0:02:13.7]} 16. Nb3 {[%clk 0:02:18.6]} 16... dxc5 {[%clk 0:02:01.3]} 17.
Nxc5 {[%clk 0:02:13.6]} 17... Nxc5 {[%clk 0:02:00.2]} 18. Qxc5 {[%clk
0:02:12.3]} 18... Ra7 {[%clk 0:01:38.5]} 19. Rac1 {[%clk 0:02:06.9]} 19... Ne4
{[%clk 0:01:34.6]} 20. Qc6 {[%clk 0:01:55.4]} 20... Nd6 {[%clk 0:01:35.5]} 21.
b3 {[%clk 0:01:49.2]} 21... Qb7 {[%clk 0:01:33.6]} 22. Bxd6 {[%clk 0:01:31]}
22... Qxc6 {[%clk 0:01:34.2]} 23. Rxc6 {[%clk 0:01:32.9]} 23... cxd6 {[%clk
0:01:31.3]} 24. Rfc1 {[%clk 0:01:33.8]} 24... Rea8 {[%clk 0:01:17.4]} 25. Kf1
{[%clk 0:01:32.4]} 25... f5 {[%clk 0:01:17.1]} 26. Ke2 {[%clk 0:01:33]} 26... h6
{[%clk 0:01:17]} 27. h4 {[%clk 0:01:32.9]} 27... Kf7 {[%clk 0:01:17.7]} 28. Rc7
{[%clk 0:01:31.3]} 28... Ke6 {[%clk 0:01:16.4]} 29. Kd3 {[%clk 0:01:29.6]} 29...
Kd5 {[%clk 0:01:09.2]} 30. Nd2 {[%clk 0:01:21.1]} 30... Bf6 {[%clk 0:01:10.3]}
31. h5 {[%clk 0:01:18.9]} 31... gxh5 {[%clk 0:01:09.5]} 32. f3 {[%clk
0:01:20.1]} 32... Ke6 {[%clk 0:01:06]} 33. e4 {[%clk 0:01:17.1]} 33... fxe4+
{[%clk 0:01:07]} 34. fxe4 {[%clk 0:01:14.6]} 34... Bg5 {[%clk 0:01:08.1]} 35.
R1c6 {[%clk 0:01:07.7]} 35... Rxc7 {[%clk 0:01:06.8]} 36. Rxc7 {[%clk 0:01:08]}
36... Bxd2 {[%clk 0:01:07.4]} 37. Kxd2 {[%clk 0:01:09.2]} 37... Rg8 {[%clk
0:01:09.3]} 38. d5+ {[%clk 0:01:07.4]} 38... Kf6 {[%clk 0:01:09.9]} 39. Ke3
{[%clk 0:01:00]} 39... Rxg2 {[%clk 0:01:09.1]} 40. Rc8 {[%clk 0:00:55.1]} 40...
h4 {[%clk 0:01:02.9]} 41. Kf3 {[%clk 0:00:49.4]} 41... h3 {[%clk 0:00:57.3]} 42.
Rh8 {[%clk 0:00:45.2]} 42... Kg7 {[%clk 0:00:55.9]} 43. Re8 {[%clk 0:00:43.4]}
43... Kf7 {[%clk 0:00:56.4]} 44. Rh8 {[%clk 0:00:43.9]} 44... Rg6 {[%clk
0:00:56.5]} 45. Rc8 {[%clk 0:00:41]} 45... h2 {[%clk 0:00:57]} 46. Rc1 {[%clk
0:00:41.4]} 46... Rg1 {[%clk 0:00:57.3]} 0-1

[Event "*** Titled Tuesday Blitz"]
[Site "Chess.com"]
[Date "2018.07.03"]
[Round "8"]
[White "jk13"]
[Black "dreamist"]
[Result "0-1"]
[WhiteElo "2556"]
[BlackElo "2600"]
[TimeControl "180+2"]
[EndTime "14:44:08 PDT"]
[Termination "dreamist won by checkmate"]

1. e4 {[%clk 0:03:01.9]} 1... c5 {[%clk 0:03:01.9]} 2. c3 {[%clk 0:03:02.9]}
2... Nf6 {[%clk 0:03:02]} 3. e5 {[%clk 0:03:04.2]} 3... Nd5 {[%clk 0:03:03.4]}
4. Bc4 {[%clk 0:03:06.1]} 4... Nb6 {[%clk 0:03:03.8]} 5. Bb3 {[%clk 0:03:07.6]}
5... c4 {[%clk 0:03:02.8]} 6. Bc2 {[%clk 0:03:09]} 6... Nc6 {[%clk 0:03:04.7]}
7. Nf3 {[%clk 0:03:10.6]} 7... g5 {[%clk 0:03:05.2]} 8. h3 {[%clk 0:03:03.6]}
8... Qc7 {[%clk 0:03:04.5]} 9. Qe2 {[%clk 0:03:02.7]} 9... h5 {[%clk 0:03:04.8]}
10. Na3 {[%clk 0:03:02.8]} 10... Rg8 {[%clk 0:02:56.9]} 11. Nxc4 {[%clk
0:02:33.3]} 11... Nxc4 {[%clk 0:02:56.3]} 12. Qxc4 {[%clk 0:02:35.2]} 12... g4
{[%clk 0:02:57.8]} 13. hxg4 {[%clk 0:02:36.8]} 13... hxg4 {[%clk 0:02:58.7]} 14.
Rh7 {[%clk 0:02:27.2]} 14... e6 {[%clk 0:02:59.6]} 15. Nd4 {[%clk 0:02:08.1]}
15... Qxe5+ {[%clk 0:03:00]} 16. Ne2 {[%clk 0:02:09.4]} 16... d5 {[%clk
0:02:52.2]} 17. Qb3 {[%clk 0:01:53.6]} 17... g3 {[%clk 0:02:43.5]} 18. fxg3
{[%clk 0:01:42]} 18... d4 {[%clk 0:02:35.8]} 19. cxd4 {[%clk 0:01:29.2]} 19...
Qxe2+ {[%clk 0:02:36.6]} 20. Kxe2 {[%clk 0:01:30.5]} 20... Nxd4+ {[%clk
0:02:38.5]} 21. Kf1 {[%clk 0:01:10.3]} 21... Nxb3 {[%clk 0:02:40.4]} 22. Bxb3
{[%clk 0:01:10.5]} 22... Bd7 {[%clk 0:02:36.1]} 23. d4 {[%clk 0:01:04.7]} 23...
Rxg3 {[%clk 0:01:56.4]} 24. Bf4 {[%clk 0:00:55.3]} 24... Rg4 {[%clk 0:01:52.5]}
25. g3 {[%clk 0:00:56]} 25... Bc6 {[%clk 0:01:52.8]} 26. d5 {[%clk 0:00:38.6]}
26... Bb5+ {[%clk 0:00:58.5]} 27. Kf2 {[%clk 0:00:39.2]} 27... e5 {[%clk
0:00:58]} 28. Bxe5 {[%clk 0:00:26.6]} 28... Re4 {[%clk 0:00:56.8]} 29. Bf4
{[%clk 0:00:20.1]} 29... Re2+ {[%clk 0:00:47]} 30. Kf3 {[%clk 0:00:21.1]} 30...
Bc5 {[%clk 0:00:26]} 31. Rh8+ {[%clk 0:00:18.6]} 31... Kd7 {[%clk 0:00:27.4]}
32. Rxa8 {[%clk 0:00:18.3]} 32... Rf2+ {[%clk 0:00:28.9]} 33. Kg4 {[%clk
0:00:19.5]} 33... Be2+ {[%clk 0:00:30.1]} 34. Kh3 {[%clk 0:00:20.3]} 34... f5
{[%clk 0:00:28.5]} 35. Rg8 {[%clk 0:00:20.7]} 35... Bf3 {[%clk 0:00:14.4]} 36.
Ba4+ {[%clk 0:00:19.3]} 36... Ke7 {[%clk 0:00:13.6]} 37. Re1+ {[%clk 0:00:20.5]}
37... Kf7 {[%clk 0:00:13.5]} 38. Rg5 {[%clk 0:00:20.9]} 38... Bg2+ {[%clk
0:00:12.4]} 39. Kh4 {[%clk 0:00:22.2]} 39... Be4 {[%clk 0:00:12.3]} 40. Rxe4
{[%clk 0:00:22.1]} 40... Rh2# {[%clk 0:00:12.4]} 0-1

[Event "*** Titled Tuesday Blitz"]
[Site "Chess.com"]
[Date "2018.07.03"]
[Round "8"]
[White "Irochka83"]
[Black "plouarzel"]
[Result "0-1"]
[WhiteElo "2262"]
[BlackElo "2488"]
[TimeControl "180+2"]
[EndTime "14:44:10 PDT"]
[Termination "plouarzel won on time"]

1. d4 {[%clk 0:03:01.9]} 1... d6 {[%clk 0:02:58]} 2. Nf3 {[%clk 0:03:00.5]} 2...
Nf6 {[%clk 0:02:58.3]} 3. c4 {[%clk 0:03:00.2]} 3... g6 {[%clk 0:02:58]} 4. Nc3
{[%clk 0:03:00.3]} 4... Nbd7 {[%clk 0:02:59.4]} 5. e4 {[%clk 0:03:01]} 5... e5
{[%clk 0:03:00.7]} 6. Be2 {[%clk 0:03:02.3]} 6... Bg7 {[%clk 0:03:01.3]} 7. O-O
{[%clk 0:03:03.4]} 7... O-O {[%clk 0:03:02.9]} 8. Be3 {[%clk 0:03:03.5]} 8... c6
{[%clk 0:03:02.9]} 9. d5 {[%clk 0:03:03.4]} 9... c5 {[%clk 0:03:03.3]} 10. Ne1
{[%clk 0:03:03.7]} 10... Nb6 {[%clk 0:02:56.4]} 11. b3 {[%clk 0:02:58.3]} 11...
a5 {[%clk 0:02:55.6]} 12. Nc2 {[%clk 0:02:43]} 12... h5 {[%clk 0:02:55]} 13. f3
{[%clk 0:02:10.9]} 13... h4 {[%clk 0:02:55.1]} 14. a3 {[%clk 0:02:00]} 14... Nh5
{[%clk 0:02:55.1]} 15. b4 {[%clk 0:01:49]} 15... axb4 {[%clk 0:02:56.5]} 16.
axb4 {[%clk 0:01:50.2]} 16... Rxa1 {[%clk 0:02:58.1]} 17. Qxa1 {[%clk
0:01:51.3]} 17... cxb4 {[%clk 0:02:38.3]} 18. Nxb4 {[%clk 0:01:46]} 18... Nf4
{[%clk 0:02:28.8]} 19. c5 {[%clk 0:01:40.8]} 19... dxc5 {[%clk 0:02:11.8]} 20.
Bxc5 {[%clk 0:01:38.4]} 20... Qg5 {[%clk 0:02:12.7]} 21. Rf2 {[%clk 0:01:39.4]}
21... Nh3+ {[%clk 0:02:09.9]} 22. Kf1 {[%clk 0:01:40.6]} 22... Nxf2 {[%clk
0:02:10.1]} 23. Kxf2 {[%clk 0:01:41.9]} 23... Nd7 {[%clk 0:01:58]} 24. Bxf8
{[%clk 0:01:40]} 24... Bxf8 {[%clk 0:01:59.4]} 25. Nd3 {[%clk 0:01:24.3]} 25...
Nc5 {[%clk 0:01:54.1]} 26. Qa5 {[%clk 0:01:09.8]} 26... Qd2 {[%clk 0:01:23.7]}
27. Nxc5 {[%clk 0:01:02.6]} 27... Qd4+ {[%clk 0:01:24.4]} 28. Ke1 {[%clk
0:00:53.4]} 28... Bxc5 {[%clk 0:01:25.8]} 29. Qd8+ {[%clk 0:00:34]} 29... Kg7
{[%clk 0:01:26.6]} 30. Nd1 {[%clk 0:00:35.5]} 30... h3 {[%clk 0:01:18]} 31. g3
{[%clk 0:00:32.6]} 31... Bb4+ {[%clk 0:01:12.8]} 32. Kf1 {[%clk 0:00:33]} 32...
Qd2 {[%clk 0:01:13.1]} 33. Kf2 {[%clk 0:00:26.1]} 33... Qe1+ {[%clk 0:01:07.7]}
34. Ke3 {[%clk 0:00:26.5]} 34... Qg1+ {[%clk 0:01:09.1]} 35. Kd3 {[%clk
0:00:26.8]} 35... Qd4+ {[%clk 0:01:09.3]} 36. Kc2 {[%clk 0:00:27]} 36... Qd2+
{[%clk 0:01:10.6]} 37. Kb3 {[%clk 0:00:26.2]} 37... Qxe2 {[%clk 0:01:08.3]} 38.
Kxb4 {[%clk 0:00:22.8]} 38... Qxd1 {[%clk 0:01:04.5]} 39. Qxc8 {[%clk
0:00:22.8]} 39... Qd2+ {[%clk 0:01:05.9]} 40. Kb5 {[%clk 0:00:21.2]} 40... Qxh2
{[%clk 0:01:07.8]} 41. d6 {[%clk 0:00:21.5]} 41... Qb2+ {[%clk 0:01:08.4]} 42.
Ka5 {[%clk 0:00:18.8]} 42... Qa3+ {[%clk 0:01:07.4]} 43. Kb5 {[%clk 0:00:19.1]}
43... h2 {[%clk 0:00:56.6]} 44. Qh3 {[%clk 0:00:10.7]} 44... Qb2+ {[%clk
0:00:51.3]} 45. Ka4 {[%clk 0:00:04.8]} 45... Qa1+ {[%clk 0:00:50.5]} 0-1

[Event "*** Titled Tuesday Blitz"]
[Site "Chess.com"]
[Date "2018.07.03"]
[Round "8"]
[White "OparinGrigoriy"]
[Black "pouya21"]
[Result "1-0"]
[WhiteElo "2888"]
[BlackElo "2655"]
[TimeControl "180+2"]
[EndTime "14:44:18 PDT"]
[Termination "OparinGrigoriy won by resignation"]

1. Nf3 {[%clk 0:03:01.9]} 1... f5 {[%clk 0:02:58.5]} 2. d4 {[%clk 0:03:02]} 2...
g6 {[%clk 0:02:58.4]} 3. c4 {[%clk 0:03:03.3]} 3... Nf6 {[%clk 0:02:58.6]} 4.
Nc3 {[%clk 0:03:04.6]} 4... Bg7 {[%clk 0:02:59.5]} 5. e3 {[%clk 0:03:04.4]} 5...
O-O {[%clk 0:03:00]} 6. Be2 {[%clk 0:03:05.5]} 6... d6 {[%clk 0:03:00.6]} 7. O-O
{[%clk 0:03:07.4]} 7... Qe8 {[%clk 0:02:57.1]} 8. b3 {[%clk 0:03:05.4]} 8... e5
{[%clk 0:02:49]} 9. dxe5 {[%clk 0:03:02.4]} 9... dxe5 {[%clk 0:02:49.8]} 10. Ba3
{[%clk 0:02:50.6]} 10... Rf7 {[%clk 0:02:48.2]} 11. Qc2 {[%clk 0:02:43.2]} 11...
e4 {[%clk 0:02:40.1]} 12. Ng5 {[%clk 0:02:42.9]} 12... Rd7 {[%clk 0:02:36.2]}
13. Rad1 {[%clk 0:02:43.7]} 13... h6 {[%clk 0:02:34.2]} 14. Nh3 {[%clk
0:02:43.8]} 14... Rxd1 {[%clk 0:02:33.3]} 15. Rxd1 {[%clk 0:02:44.4]} 15... Be6
{[%clk 0:02:34.8]} 16. Nf4 {[%clk 0:02:43]} 16... Bf7 {[%clk 0:02:35.8]} 17.
Nfd5 {[%clk 0:02:44.2]} 17... Na6 {[%clk 0:02:34]} 18. Nb5 {[%clk 0:02:18.5]}
18... Nxd5 {[%clk 0:02:01.4]} 19. cxd5 {[%clk 0:02:20.4]} 19... Qe5 {[%clk
0:02:02.2]} 20. d6 {[%clk 0:02:08.4]} 20... c6 {[%clk 0:01:53.3]} 21. d7 {[%clk
0:01:58]} 21... Rd8 {[%clk 0:01:17.8]} 22. Nd6 {[%clk 0:01:58.5]} 22... Rxd7
{[%clk 0:01:08]} 23. Nxf7 {[%clk 0:01:59.4]} 23... Rxd1+ {[%clk 0:01:07]} 24.
Qxd1 {[%clk 0:02:01.3]} 24... Kxf7 {[%clk 0:01:06.8]} 25. Qd7+ {[%clk 0:02:02]}
25... Kg8 {[%clk 0:01:06.5]} 26. Qxb7 {[%clk 0:02:03]} 26... Nc5 {[%clk
0:00:58.8]} 27. Bxc5 {[%clk 0:00:47.9]} 27... Qxc5 {[%clk 0:00:58]} 28. Bc4+
{[%clk 0:00:49.4]} 28... Kh7 {[%clk 0:00:58.5]} 29. g3 {[%clk 0:00:49.6]} 29...
h5 {[%clk 0:00:56]} 30. h4 {[%clk 0:00:50]} 30... a5 {[%clk 0:00:54.3]} 31. Qd7
{[%clk 0:00:40]} 31... a4 {[%clk 0:00:48.9]} 32. Kg2 {[%clk 0:00:40.5]} 32...
axb3 {[%clk 0:00:45]} 33. Bxb3 {[%clk 0:00:42.4]} 33... Kh6 {[%clk 0:00:43.2]}
34. Bf7 {[%clk 0:00:42.3]} 34... Be5 {[%clk 0:00:21.9]} 35. a4 {[%clk
0:00:37.5]} 35... Qd6 {[%clk 0:00:21.1]} 36. Qe8 {[%clk 0:00:38.7]} 36... c5
{[%clk 0:00:21.6]} 37. a5 {[%clk 0:00:34.5]} 37... Kg7 {[%clk 0:00:16.9]} 38.
Bxg6 {[%clk 0:00:34.5]} 38... Qxg6 {[%clk 0:00:06.4]} 39. Qxe5+ {[%clk
0:00:34.8]} 39... Kh7 {[%clk 0:00:07.2]} 40. Qxc5 {[%clk 0:00:32.9]} 40... Qg4
{[%clk 0:00:08.3]} 41. Qc7+ {[%clk 0:00:32.4]} 41... Kh8 {[%clk 0:00:08.4]} 42.
Qf4 {[%clk 0:00:33.6]} 42... Qe2 {[%clk 0:00:09]} 43. Qxf5 {[%clk 0:00:34.4]}
1-0

[Event "*** Titled Tuesday Blitz"]
[Site "Chess.com"]
[Date "2018.07.03"]
[Round "8"]
[White "ChrisTool2"]
[Black "andrzej"]
[Result "1-0"]
[WhiteElo "2273"]
[BlackElo "2205"]
[TimeControl "180+2"]
[EndTime "14:44:27 PDT"]
[Termination "ChrisTool2 won by checkmate"]

1. d4 {[%clk 0:03:01.9]} 1... Nf6 {[%clk 0:02:59.4]} 2. c4 {[%clk 0:03:00.3]}
2... e6 {[%clk 0:03:00.5]} 3. Nf3 {[%clk 0:03:00.9]} 3... b6 {[%clk 0:03:01.4]}
4. a3 {[%clk 0:03:00.3]} 4... Bb7 {[%clk 0:03:00.2]} 5. Nc3 {[%clk 0:02:58.5]}
5... d5 {[%clk 0:03:01]} 6. Qc2 {[%clk 0:02:55.5]} 6... Nbd7 {[%clk 0:02:50.6]}
7. cxd5 {[%clk 0:02:53.4]} 7... Nxd5 {[%clk 0:02:45.9]} 8. e4 {[%clk 0:02:50]}
8... Nxc3 {[%clk 0:02:46.6]} 9. bxc3 {[%clk 0:02:51.9]} 9... c5 {[%clk
0:02:44.7]} 10. Bb5 {[%clk 0:02:18.6]} 10... a6 {[%clk 0:02:42.6]} 11. Bd3
{[%clk 0:02:16.7]} 11... Rc8 {[%clk 0:02:36.7]} 12. Qe2 {[%clk 0:01:55.8]} 12...
cxd4 {[%clk 0:02:32.6]} 13. cxd4 {[%clk 0:01:54.6]} 13... b5 {[%clk 0:02:33.8]}
14. d5 {[%clk 0:01:47.1]} 14... exd5 {[%clk 0:02:20.3]} 15. O-O {[%clk
0:01:24.3]} 15... Be7 {[%clk 0:02:16.6]} 16. Bb2 {[%clk 0:01:16.1]} 16... dxe4
{[%clk 0:02:01.6]} 17. Bxe4 {[%clk 0:01:11.3]} 17... Bxe4 {[%clk 0:02:02.4]} 18.
Qxe4 {[%clk 0:01:13.2]} 18... O-O {[%clk 0:01:45.1]} 19. Rad1 {[%clk 0:01:12.9]}
19... Bf6 {[%clk 0:01:09.2]} 20. Qg4 {[%clk 0:00:18.5]} 20... Bxb2 {[%clk
0:01:01]} 21. Rxd7 {[%clk 0:00:18.7]} 21... Qf6 {[%clk 0:00:59.5]} 22. Rfd1
{[%clk 0:00:19.9]} 22... Rc1 {[%clk 0:00:50.5]} 23. h3 {[%clk 0:00:15.7]} 23...
Rxd1+ {[%clk 0:00:49.7]} 24. Rxd1 {[%clk 0:00:17.6]} 24... Bxa3 {[%clk
0:00:50.4]} 25. Ng5 {[%clk 0:00:17.9]} 25... Qg6 {[%clk 0:00:41]} 26. Qh4 {[%clk
0:00:12.3]} 26... Be7 {[%clk 0:00:39.4]} 27. f4 {[%clk 0:00:09.4]} 27... h6
{[%clk 0:00:37.9]} 28. Qe1 {[%clk 0:00:10.2]} 28... Bc5+ {[%clk 0:00:35.3]} 29.
Kh1 {[%clk 0:00:11.4]} 29... hxg5 {[%clk 0:00:36.3]} 30. Rd5 {[%clk 0:00:12.9]}
30... Qe6 {[%clk 0:00:18.8]} 31. Re5 {[%clk 0:00:13.1]} 31... Qb6 {[%clk
0:00:16.9]} 32. fxg5 {[%clk 0:00:13.5]} 32... b4 {[%clk 0:00:14.2]} 33. Qc1
{[%clk 0:00:10.4]} 33... Bd4 {[%clk 0:00:13.9]} 34. Rd5 {[%clk 0:00:09.6]} 34...
b3 {[%clk 0:00:13.3]} 35. g6 {[%clk 0:00:10.8]} 35... fxg6 {[%clk 0:00:11.3]}
36. Qc4 {[%clk 0:00:11.5]} 36... Kh7 {[%clk 0:00:07.6]} 37. Rxd4 {[%clk
0:00:11.4]} 37... Rb8 {[%clk 0:00:04.2]} 38. Rh4# {[%clk 0:00:11.5]} 1-0

[Event "*** Titled Tuesday Blitz"]
[Site "Chess.com"]
[Date "2018.07.03"]
[Round "8"]
[White "Dr-Bassem"]
[Black "Korchmar_Vasiliy"]
[Result "0-1"]
[WhiteElo "2719"]
[BlackElo "2726"]
[TimeControl "180+2"]
[EndTime "14:44:48 PDT"]
[Termination "Korchmar_Vasiliy won on time"]

1. e4 {[%clk 0:03:01.9]} 1... c5 {[%clk 0:03:00.7]} 2. Nf3 {[%clk 0:03:02.9]}
2... d6 {[%clk 0:03:01.5]} 3. g3 {[%clk 0:03:03.5]} 3... Nc6 {[%clk 0:02:57.7]}
4. Bg2 {[%clk 0:03:04.6]} 4... g6 {[%clk 0:02:59.2]} 5. O-O {[%clk 0:03:05.7]}
5... Bg7 {[%clk 0:03:00.7]} 6. c3 {[%clk 0:03:07.3]} 6... e5 {[%clk 0:03:00.1]}
7. d3 {[%clk 0:03:08]} 7... Nge7 {[%clk 0:02:59.8]} 8. a3 {[%clk 0:03:09.6]}
8... a5 {[%clk 0:02:50.5]} 9. a4 {[%clk 0:03:10.7]} 9... O-O {[%clk 0:02:51.7]}
10. Be3 {[%clk 0:03:12]} 10... b6 {[%clk 0:02:43.2]} 11. Nfd2 {[%clk 0:03:12.1]}
11... d5 {[%clk 0:02:43.2]} 12. exd5 {[%clk 0:03:09.8]} 12... Nxd5 {[%clk
0:02:45.1]} 13. Nc4 {[%clk 0:03:11.1]} 13... Be6 {[%clk 0:02:42.2]} 14. Qd2
{[%clk 0:03:04.8]} 14... Rb8 {[%clk 0:02:41.4]} 15. Nba3 {[%clk 0:03:05.5]}
15... Qd7 {[%clk 0:02:36.6]} 16. Bh6 {[%clk 0:03:01.8]} 16... Bh3 {[%clk
0:02:35]} 17. Bxg7 {[%clk 0:03:01]} 17... Kxg7 {[%clk 0:02:36.9]} 18. Bxh3
{[%clk 0:02:45.2]} 18... Qxh3 {[%clk 0:02:38.8]} 19. Rfe1 {[%clk 0:02:41.9]}
19... Rbe8 {[%clk 0:02:33.9]} 20. Qe2 {[%clk 0:02:11.3]} 20... f5 {[%clk
0:02:27.3]} 21. Qf1 {[%clk 0:02:09.3]} 21... Qh5 {[%clk 0:02:21.1]} 22. Qg2
{[%clk 0:02:08.6]} 22... Rd8 {[%clk 0:02:09]} 23. Nxe5 {[%clk 0:02:06.1]} 23...
Nxe5 {[%clk 0:02:10.2]} 24. Rxe5 {[%clk 0:02:07.5]} 24... Nf6 {[%clk 0:02:11.8]}
25. Re7+ {[%clk 0:02:02.6]} 25... Kg8 {[%clk 0:02:09.7]} 26. Rae1 {[%clk
0:00:38]} 26... Rxd3 {[%clk 0:02:03]} 27. Nc4 {[%clk 0:00:37.2]} 27... Ne4
{[%clk 0:01:59.4]} 28. h3 {[%clk 0:00:16.1]} 28... Ng5 {[%clk 0:01:56.6]} 29.
Qb7 {[%clk 0:00:07.2]} 29... Nf3+ {[%clk 0:01:41.5]} 30. Kg2 {[%clk 0:00:07.2]}
30... Nxe1+ {[%clk 0:01:42.6]} 31. Rxe1 {[%clk 0:00:09.1]} 31... f4 {[%clk
0:01:38.8]} 32. Qe4 {[%clk 0:00:09.7]} 32... Rdd8 {[%clk 0:01:32.4]} 33. g4
{[%clk 0:00:09.7]} 33... Qh4 {[%clk 0:01:26.8]} 34. Qe6+ {[%clk 0:00:10.7]}
34... Kg7 {[%clk 0:00:52.1]} 35. Qe7+ {[%clk 0:00:09.5]} 35... Qxe7 {[%clk
0:00:52.1]} 36. Rxe7+ {[%clk 0:00:11.4]} 36... Rf7 {[%clk 0:00:47.3]} 37. Re4
{[%clk 0:00:11.2]} 37... f3+ {[%clk 0:00:40.6]} 38. Kg3 {[%clk 0:00:12.2]} 38...
Rd1 {[%clk 0:00:42.5]} 39. Ne3 {[%clk 0:00:04.9]} 39... Rg1+ {[%clk 0:00:42.9]}
40. Kh2 {[%clk 0:00:06.1]} 40... Rb1 {[%clk 0:00:42.4]} 41. Nc4 {[%clk
0:00:05.8]} 41... Rf1 {[%clk 0:00:43.2]} 42. Kg3 {[%clk 0:00:05.5]} 42... Rg1+
{[%clk 0:00:44.5]} 43. Kh4 {[%clk 0:00:05.6]} 43... Rg2 {[%clk 0:00:46]} 44. Ne5
{[%clk 0:00:05.1]} 44... Rf8 {[%clk 0:00:47.5]} 45. Nd3 {[%clk 0:00:05.3]} 45...
Rd8 {[%clk 0:00:45.4]} 46. Re3 {[%clk 0:00:04.7]} 46... Rd5 {[%clk 0:00:36.4]}
0-1